bitfinex-derivatives/quotes_SOLF0:USTF0_20251222
["timestamp","ask_amount","ask_price","bid_price","bid_amount"]
[1766393447134,53.8407,126.46,126.38,3.19]
[1766393447736,110.7719,126.45,126.35,3.19]
[1766393448235,0.05766459,126.41,126.39,0.0566822]
[1766393448838,6.01429332,126.45,126.39,3.2466822]
[1766393449024,46.72,126.46,126.39,3.2466822]
[1766393449740,0.05964177,126.44,126.39,3.2466822]
[1766393450440,0.05964177,126.44,126.39,0.0566822]
[1766393451331,13.20785483,126.44,126.39,0.0566822]
[1766393451537,0.05964177,126.44,126.39,0.0566822]
[1766393451731,0.05964177,126.44,126.39,3.2466822]
[1766393451938,0.05964177,126.44,126.39,0.0566822]
[1766393452430,7.18134177,126.44,126.39,0.0566822]
[1766393454325,6.03625575,126.43,126.39,0.0566822]
[1766393454729,6.03622874,126.43,126.39,0.0566822]
[1766393454939,7.18134177,126.44,126.39,0.0566822]
[1766393455429,6.03941504,126.43,126.39,0.0566822]
[1766393458830,7.18134177,126.44,126.39,3.2466822]
[1766393458831,0.05964177,126.44,126.39,3.2466822]
[1766393460835,0.05964177,126.44,126.39,0.0566822]
[1766393461636,0.05964177,126.44,126.39,3.2466822]
[1766393464255,7.18154177,126.44,126.39,0.0566822]
[1766393464752,0.05964177,126.44,126.39,0.0566822]
[1766393465847,7.18124177,126.44,126.39,0.0566822]
[1766393466548,0.05964177,126.44,126.39,3.3066822]
[1766393467444,0.05964177,126.44,126.39,0.0566822]
[1766393468888,46.72,126.46,126.39,3.3066822]
[1766393469051,7.119,126.49,126.4,3.25]
[1766393469842,0.06028537,126.46,126.43,0.0594892]
[1766393474353,0.00028537,126.46,126.43,3.3094892]
[1766393474649,0.00028537,126.46,126.43,0.0594892]
[1766393475657,46.72,126.45,126.37,3.25]
[1766393475954,7.1217,126.44,126.37,3.25]
[1766393476548,0.05708335,126.42,126.39,0.05837901]
[1766393482054,53.8411,126.45,126.39,3.30837901]
[1766393483158,0.05465759,126.43,126.39,3.30837901]
[1766393486861,0.05465759,126.43,126.39,0.05837901]
[1766393487559,7.17685759,126.43,126.39,0.05837901]
[1766393487764,110.84865759,126.43,126.34,3.25]
[1766393487965,110.794,126.43,126.34,3.25]
[1766393488561,7.1235,126.41,126.34,3.25]
[1766393488759,0.00354999,126.39,126.36,3.56395241]
[1766393489061,157.4965,126.45,126.36,3.51]
[1766393489353,7.1228,126.42,126.36,3.51]
[1766393489562,110.7886,126.43,126.34,3.51]
[1766393489858,0.0580441,126.4,126.37,0.00081452]
[1766393490063,110.8369,126.38,126.29,3.51]
[1766393490254,110.8415,126.37,126.29,3.51]
[1766393490453,7.128,126.33,126.26,3.51]
[1766393490652,110.8509,126.36,126.26,3.51]
[1766393490653,46.72,126.34,126.26,3.51]
[1766393490855,157.5902,126.34,126.23,3.51]
[1766393491059,0.055429,126.3,126.27,0.0601612]
[1766393491452,0.055429,126.3,126.23,3.51]
[1766393491853,53.8503,126.29,126.2,3.51]
[1766393492155,46.72,126.29,126.2,3.51]
[1766393492649,0.05533841,126.26,126.23,0.05401961]
[1766393493053,0.05533841,126.26,126.17,7.1366]
[1766393493054,110.99383841,126.26,126.17,3.51]
[1766393493251,110.9059,126.3,126.18,3.51]
[1766393493459,53.8702,126.29,126.19,3.51]
[1766393494062,46.74,126.29,126.23,0.04995688]
[1766393495151,0.05678074,126.27,126.23,0.04995688]
[1766393495956,0.05678074,126.27,126.23,3.46995688]
[1766393496460,0.05678074,126.27,126.23,0.04995688]
[1766393496866,0.05678074,126.27,126.17,3.42]
[1766393497063,110.9232,126.28,126.17,3.42]
[1766393497468,7.1314,126.27,126.17,3.42]
[1766393497968,0.05063597,126.23,126.21,0.05310441]
[1766393499569,0.00063597,126.23,126.21,0.05310441]
[1766393501872,0.00063597,126.23,126.16,3.42]
[1766393502071,110.9503,126.25,126.16,3.42]
[1766393502270,110.9408,126.26,126.16,3.42]
[1766393502858,0.05502694,126.22,126.2,0.05445465]
[1766393503862,53.9112,126.27,126.2,0.05445465]
[1766393504972,110.9,126.31,126.2,0.05445465]
[1766393504973,0.0590396,126.25,126.2,3.47445465]
[1766393505173,0.0590396,126.25,126.21,3.47069254]
[1766393505573,53.909,126.31,126.21,3.47069254]
[1766393505776,157.6762,126.31,126.21,3.42]
[1766393505971,110.904,126.3,126.21,3.42]
[1766393506370,110.9242,126.28,126.18,3.42]
[1766393506571,0.05391381,126.24,126.22,0.05781051]
[1766393508478,0.00391381,126.24,126.22,0.05781051]
[1766393508675,46.78,126.3,126.22,3.47781051]
[1766393508883,46.78,126.3,126.22,3.42]
[1766393509187,46.78,126.3,126.23,3.42]
[1766393509687,0.05073771,126.28,126.25,0.05419709]
[1766393512681,0.00073771,126.28,126.25,3.47419709]
[1766393513074,53.9075,126.34,126.25,3.47419709]
[1766393513270,53.9075,126.34,126.25,3.42]
[1766393513883,53.9075,126.34,126.25,10.552]
[1766393514069,53.9075,126.34,126.28,0.05126779]
[1766393514274,0.05005575,126.31,126.28,0.05126779]
[1766393518871,0.05005575,126.31,126.28,0.00126779]
[1766393522680,5.575e-05,126.31,126.28,3.42126779]
[1766393523188,46.78,126.35,126.28,3.42126779]
[1766393523496,110.8135,126.41,126.29,3.42]
[1766393523698,46.78,126.4,126.29,3.42]
[1766393524076,46.78,126.4,126.3,3.42]
[1766393524077,110.8239,126.39,126.3,3.42]
[1766393524290,0.0563616,126.36,126.33,0.00184157]
[1766393524590,110.8445,126.37,126.33,0.00184157]
[1766393524591,46.78,126.35,126.33,0.00184157]
[1766393524888,342.2049483,126.43,126.33,0.00184157]
[1766393524889,110.815,126.4,126.33,0.00184157]
[1766393525088,110.805,126.42,126.3,3.42]
[1766393525282,7.1251,126.38,126.3,3.42]
[1766393525483,0.05878777,126.37,126.35,0.05902274]
[1766393525724,0.05878777,126.37,126.27,3.41]
[1766393525874,46.78,126.36,126.27,3.41]
[1766393526689,0.05798221,126.33,126.3,0.05257623]
[1766393526990,110.8092,126.41,126.3,3.46257623]
[1766393527191,46.78,126.38,126.31,3.41]
[1766393527688,46.78,126.38,126.31,10.5385]
[1766393527885,0.05583808,126.36,126.33,0.05957947]
[1766393529486,46.78,126.38,126.33,3.46957947]
[1766393529882,46.76,126.42,126.34,10.5368]
[1766393530482,0.0520285,126.39,126.37,0.0514633]
[1766393531484,0.0020285,126.39,126.37,0.0514633]
[1766393531686,0.0020285,126.39,126.37,3.4614633]
[1766393533485,46.76,126.42,126.37,3.4614633]
[1766393534292,141.8,126.46,126.37,3.4614633]
[1766393534490,0.02727912,126.43,126.4,0.06049744]
[1766393545194,0.02727912,126.43,126.4,3.47049744]
[1766393545393,134.5253,126.5,126.41,3.41]
[1766393545394,110.739,126.49,126.41,3.41]
[1766393546098,7.1202,126.47,126.41,3.41]
[1766393546298,7.1202,126.47,126.43,0.05699608]
[1766393548402,7.1189,126.49,126.43,0.05699608]
[1766393548610,7.1189,126.49,126.45,0.05658709]
[1766393551310,7.1194,126.48,126.45,0.05658709]
[1766393553003,46.74,126.51,126.45,0.05658709]
[1766393553614,7.1188,126.49,126.45,0.05658709]
[1766393554310,7.1188,126.49,126.4,3.36]
[1766393554311,110.7362,126.49,126.4,3.36]
[1766393554516,110.7453,126.48,126.4,3.36]
[1766393554814,46.72,126.47,126.4,3.36]
[1766393555312,0.05319624,126.45,126.42,0.05843797]
[1766393555507,7.17429624,126.45,126.42,0.05843797]
[1766393558505,0.05319624,126.45,126.38,3.3]
[1766393558717,110.767,126.46,126.36,3.3]
[1766393559011,110.7801,126.44,126.34,3.3]
[1766393559318,7.1233,126.41,126.34,3.3]
[1766393559516,157.5112,126.43,126.34,3.3]
[1766393559716,157.5112,126.43,126.36,0.0510248]
[1766393559717,0.05960924,126.39,126.36,0.0510248]
[1766393564713,46.77960924,126.39,126.36,0.0510248]
[1766393565423,53.90410924,126.39,126.36,0.0510248]
[1766393566121,46.77960924,126.39,126.32,3.3]
[1766393566423,46.72,126.39,126.32,3.3]
[1766393566917,46.72,126.39,126.34,0.05999505]
[1766393567119,7.17613943,126.37,126.34,0.05999505]
[1766393567323,0.05063943,126.37,126.34,0.05999505]
[1766393575536,7.17633943,126.37,126.34,0.05999505]
[1766393575736,0.05063943,126.37,126.31,3.3]
[1766393576635,7.1263,126.36,126.33,0.04991711]
[1766393578839,7.17623943,126.37,126.33,0.04991711]
[1766393580439,7.1261,126.36,126.33,0.04991711]
[1766393581443,46.74,126.35,126.3,3.3]
[1766393582543,7.18746702,126.34,126.31,0.05029641]
[1766393582746,0.00026702,126.34,126.31,3.35029641]
[1766393585243,7.12756702,126.34,126.31,0.05029641]
[1766393585750,7.12756702,126.34,126.28,3.3]
[1766393585945,7.128,126.33,126.28,3.3]
[1766393586842,7.128,126.33,126.29,0.0583684]
[1766393589457,46.76026702,126.34,126.29,0.0583684]
[1766393589754,46.76026702,126.34,126.29,3.5583684]
[1766393593448,0.00026702,126.34,126.29,3.5583684]
[1766393594466,0.00026702,126.34,126.3,3.5]
[1766393604061,0.00026702,126.34,126.29,0.0583684]
[1766393604263,0.00026702,126.34,126.28,3.5]
[1766393604264,2.31823553,126.33,126.28,3.5]
[1766393604767,2.31823553,126.33,126.26,3.5]
[1766393605370,0.05140828,126.31,126.28,0.05693204]
[1766393611966,1.48477186,126.29,126.25,3.23]
[1766393612474,7.1289,126.31,126.25,3.23]
[1766393612777,1.48477186,126.29,126.25,3.23]
[1766393613009,0.00238073,126.28,126.26,0.0602536]
[1766393613569,0.00238073,126.28,126.26,3.2902536]
[1766393615274,1.48477186,126.33,126.26,3.2902536]
[1766393616178,0.05971521,126.31,126.26,3.2902536]
[1766393616376,1.54448707,126.31,126.26,3.2902536]
[1766393618778,1.54448707,126.31,126.26,0.0602536]
[1766393618979,1.54448707,126.31,126.26,3.4802536]
[1766393620483,0.05971521,126.31,126.26,3.4802536]
[1766393626291,1.48477186,126.3,126.26,0.0602536]
[1766393626680,1.48477186,126.28,126.24,3.42]
[1766393626983,8.61427186,126.3,126.24,3.42]
[1766393627380,1.48477186,126.3,126.25,3.42]
[1766393627783,0.05157015,126.29,126.26,3.47200224]
[1766393627988,0.05157015,126.29,126.26,3.47855016]
[1766393630886,0.00157015,126.29,126.26,3.47855016]
[1766393631490,1.48477186,126.33,126.26,3.47855016]
[1766393631691,1.48477186,126.33,126.26,3.42]
[1766393631897,46.76,126.34,126.26,3.42]
[1766393632093,1.48477186,126.33,126.26,3.42]
[1766393632581,0.05553709,126.31,126.28,3.47147172]
[1766393633380,1.48477186,126.29,126.19,3.42]
[1766393633582,1.48477186,126.26,126.19,3.42]
[1766393634389,1.48477186,126.26,126.21,3.47434929]
[1766393634390,0.05060387,126.24,126.21,3.47434929]
[1766393634594,0.00060387,126.24,126.21,3.47434929]
[1766393634991,1.48477186,126.27,126.21,3.47434929]
[1766393635897,0.05570368,126.25,126.21,3.47434929]
[1766393636700,1.54047554,126.25,126.21,3.47434929]
[1766393637698,1.54047554,126.25,126.21,4.929e-05]
[1766393638602,8.67307554,126.25,126.22,0.0568966]
[1766393638804,8.67307554,126.25,126.21,4.929e-05]
[1766393639505,1.48477186,126.24,126.21,4.929e-05]
[1766393639803,1.48477186,126.24,126.21,0.06090552]
[1766393640504,7.18830368,126.25,126.21,0.06090552]
[1766393640701,0.05570368,126.25,126.21,0.06090552]
[1766393640901,1.54047554,126.25,126.21,0.06090552]
[1766393642105,0.05570368,126.25,126.22,3.42]
[1766393643393,0.05570368,126.25,126.21,0.06085623]
[1766393643607,0.05570368,126.25,126.21,3.48085623]
[1766393645105,1.48477186,126.27,126.21,3.48085623]
[1766393645707,1.48477186,126.27,126.22,3.32]
[1766393646210,0.00421388,126.26,126.22,3.32]
[1766393646599,0.00421388,126.26,126.22,10.4538]
[1766393646905,0.00421388,126.26,126.23,3.32]
[1766393648811,1.48477186,126.3,126.24,3.32]
[1766393649500,5.83367862,126.3,126.25,3.32]
[1766393649810,7.31845048,126.31,126.25,3.32]
[1766393650007,0.05060063,126.29,126.26,0.05971576]
[1766393650207,1.53537249,126.29,126.23,3.32]
[1766393650408,5.83367862,126.31,126.2,3.32]
[1766393650409,1.48477186,126.25,126.2,3.32]
[1766393651303,0.05308509,126.24,126.21,0.05570581]
[1766393651812,0.05308509,126.24,126.21,3.37570581]
[1766393653309,0.00308509,126.24,126.21,3.37570581]
[1766393654916,1.48477186,126.28,126.21,3.37570581]
[1766393655113,118.27563774,126.31,126.21,3.32]
[1766393655114,1.48477186,126.26,126.21,3.32]
[1766393655720,1.48477186,126.25,126.21,3.32]
[1766393655911,1.54147943,126.25,126.22,0.05119767]
[1766393656611,1.48477186,126.27,126.22,3.37119767]
[1766393656811,7.31715705,126.27,126.22,3.37119767]
[1766393657316,5.83238519,126.27,126.22,3.37119767]
[1766393657516,1.48477186,126.27,126.22,3.37119767]
[1766393657719,0.05619486,126.26,126.22,3.37119767]
[1766393658725,0.05619486,126.26,126.22,10.50489767]
[1766393658915,0.05619486,126.26,126.23,3.32]
[1766393661022,46.78,126.31,126.25,3.32]
[1766393661318,7.31919639,126.3,126.25,3.32]
[1766393661917,0.05597963,126.29,126.26,0.06069363]
[1766393662116,0.05597963,126.29,126.23,3.32]
[1766393662117,1.48477186,126.28,126.23,3.32]
[1766393662519,1.48477186,126.26,126.23,3.32]
[1766393663126,1.53810432,126.26,126.23,3.37058509]
[1766393664031,1.53810432,126.26,126.23,0.05058509]
[1766393665824,1.48477186,126.24,126.19,50.1]
[1766393666125,13.02313044,126.26,126.2,3.32]
[1766393666126,8.61657186,126.26,126.2,3.32]
[1766393666428,1.48477186,126.26,126.2,3.32]
[1766393666724,1.48477186,126.26,126.22,0.05043178]
[1766393666923,0.05560402,126.24,126.22,0.05043178]
[1766393667123,1.48477186,126.26,126.22,0.05043178]
[1766393667324,14.45396417,126.27,126.22,0.05043178]
[1766393667529,5.83799231,126.26,126.22,0.05043178]
[1766393668027,54.15883774,126.29,126.23,3.32]
[1766393668028,1.48477186,126.29,126.23,3.32]
[1766393668224,1.48477186,126.25,126.15,111.034]
[1766393668532,1.48477186,126.21,126.13,3.32700291]
[1766393668724,1.48477186,126.19,126.13,3.32700291]
[1766393669332,0.00037459,126.17,126.15,0.05192416]
[1766393673328,1.48514645,126.17,126.13,3.32700291]
[1766393673520,1.48477186,126.15,126.07,3.32]
[1766393673928,2.3257408,126.15,126.07,3.32]
[1766393674225,2.3257408,126.15,126.1,0.05459769]
[1766393674427,0.05056671,126.12,126.1,0.05459769]
[1766393674936,2.3257408,126.17,126.1,3.37459769]
[1766393675526,46.8,126.18,126.11,3.35]
[1766393675934,0.05283049,126.16,126.13,0.05571267]
[1766393676728,0.00283049,126.16,126.13,3.40571267]
[1766393676934,2.3257408,126.21,126.13,3.40571267]
[1766393677132,2.3257408,126.21,126.13,3.35]
[1766393677934,0.05587697,126.18,126.16,0.05687882]
[1766393678128,2.3257408,126.21,126.16,0.05687882]
[1766393679025,0.05690748,126.2,126.16,0.05687882]
[1766393684441,2.3257408,126.22,126.16,3.40687882]
[1766393684642,46.8,126.23,126.16,3.40687882]
[1766393685039,53.9336,126.23,126.16,3.40687882]
[1766393685545,0.05858525,126.21,126.16,3.40687882]
[1766393686036,0.05858525,126.21,126.16,0.05687882]
[1766393686343,2.3257408,126.2,126.14,3.35]
[1766393686545,9.4621408,126.18,126.12,3.35]
[1766393687444,0.05332162,126.16,126.14,0.05816084]
[1766393687935,0.05332162,126.16,126.12,3.35]
[1766393688933,0.05332162,126.16,126.13,0.05506954]
[1766393690640,0.00332162,126.16,126.13,3.40506954]
[1766393696551,0.00332162,126.16,126.13,10.54386954]
[1766393696747,0.00332162,126.16,126.14,3.35]
[1766393697550,0.00332162,126.16,126.14,10.488]
[1766393697747,0.00332162,126.16,126.15,3.35]
[1766393702149,0.00332162,126.16,126.13,0.05506954]
[1766393702150,0.00332162,126.16,126.13,50.22506954]
[1766393702756,0.00332162,126.16,126.14,3.35]
[1766393705166,0.00332162,126.16,126.13,54.01396954]
[1766393705453,0.00332162,126.16,126.13,57.48396954]
[1766393706060,0.00332162,126.16,126.13,3.52506954]
[1766393706663,0.00332162,126.16,126.13,0.05506954]
[1766393709264,0.00332162,126.16,126.09,3.47]
[1766393709461,2.3257408,126.17,126.09,3.47]
[1766393709957,120.7893483,126.24,126.1,3.47]
[1766393710157,0.05801915,126.17,126.15,0.05733992]
[1766393710467,2.3257408,126.18,126.1,3.47]
[1766393711064,2.3257408,126.18,126.12,3.47]
[1766393711464,0.05613792,126.16,126.14,0.05559318]
[1766393712064,2.3257408,126.21,126.14,3.52559318]
[1766393713169,0.05337748,126.19,126.14,3.52559318]
[1766393713560,2.37911828,126.19,126.14,0.05559318]
[1766393713865,9.4626408,126.17,126.09,50.29]
[1766393714072,2.3257408,126.17,126.09,50.29]
[1766393714263,2.3257408,126.13,126.05,3.47]
[1766393714571,9.4651408,126.13,126.05,3.47]
[1766393714865,0.05999097,126.1,126.08,0.0513482]
[1766393719482,0.05999097,126.1,126.02,3.47]
[1766393719483,2.3257408,126.09,126.02,3.47]
[1766393719779,56.2862408,126.11,126.02,3.47]
[1766393719981,160.2178408,126.11,126.02,3.47]
[1766393720169,7.1415,126.09,126.02,3.47]
[1766393720367,0.0531049,126.07,126.04,0.05158209]
[1766393720875,0.0531049,126.07,126.0,3.47]
[1766393721768,0.0531049,126.07,126.02,3.52881543]
[1766393721974,0.06038737,126.06,126.02,0.05881543]
[1766393722167,0.06038737,126.06,126.03,0.05086084]
[1766393724383,0.06038737,126.06,126.03,3.52086084]
[1766393727979,2.3257408,126.11,126.03,3.52086084]
[1766393728182,120.71957854,126.18,126.03,3.52086084]
[1766393728183,2.3257408,126.15,126.05,3.2]
[1766393728380,49.1657408,126.15,126.05,3.2]
[1766393728880,2.3257408,126.17,126.07,3.2]
[1766393729088,2.3257408,126.17,126.11,0.04993896]
[1766393729089,0.05187968,126.13,126.11,0.04993896]
[1766393733088,0.05187968,126.13,126.07,10.3423]
[1766393733489,0.05187968,126.13,126.08,3.2]
[1766393734088,0.05187968,126.13,126.09,0.05154534]
[1766393735387,7.19107968,126.13,126.09,0.05154534]
[1766393739587,0.05187968,126.13,126.09,3.59154534]
[1766393742297,0.00187968,126.13,126.09,3.59154534]
[1766393743484,7.1376,126.16,126.09,3.59154534]
[1766393743680,46.84,126.18,126.1,3.54]
[1766393744699,0.05516395,126.15,126.13,0.05990946]
[1766393747996,7.1361,126.19,126.13,3.59990946]
[1766393748407,7.1361,126.19,126.13,0.05990946]
[1766393748593,7.1364,126.18,126.13,0.05990946]
[1766393748784,0.05569199,126.17,126.13,0.05990946]
[1766393751999,1.54335391,126.17,126.13,0.05990946]
[1766393753592,1.48766192,126.15,126.13,0.05990946]
[1766393753789,1.48766192,126.15,126.1,3.54]
[1766393754700,0.05388812,126.14,126.11,0.05814844]
[1766393757300,0.00388812,126.14,126.11,3.59814844]
[1766393758206,0.00388812,126.14,126.11,0.05814844]
[1766393758412,1.49155004,126.14,126.11,0.05814844]
[1766393761008,1.49155004,126.14,126.07,3.54]
[1766393761312,1.48766192,126.12,126.07,3.54]
[1766393761918,0.05738226,126.11,126.08,0.05651469]
[1766393763638,1.48766192,126.1,126.03,3.74857]
[1766393763806,1.48766192,126.08,126.03,3.74857]
[1766393764715,0.0550474,126.07,126.04,0.05594756]
[1766393765514,1.48766192,126.06,125.99,3.35]
[1766393765730,1.48766192,126.04,125.99,3.35]
[1766393766517,0.06050763,126.03,126.0,0.05843971]
[1766393766717,0.06050763,126.03,125.95,3.35]
[1766393766718,1.48766192,126.02,125.95,3.35]
[1766393767023,1.48766192,126.0,125.95,3.35]
[1766393767215,1.48766192,126.01,125.95,3.35]
[1766393767623,0.05132018,125.99,125.97,0.05851238]
[1766393768023,1.5389821,125.99,125.95,3.35]
[1766393768217,0.05132018,125.99,125.95,3.35]
[1766393769125,0.05132018,125.99,125.96,0.0559021]
[1766393769324,1.5389821,125.99,125.96,0.0559021]
[1766393769927,1.5389821,125.99,125.93,3.35]
[1766393770924,1.5389821,125.99,125.95,0.0501759]
[1766393771917,0.05132018,125.99,125.95,0.0501759]
[1766393772122,0.05132018,125.99,125.95,3.4001759]
[1766393772319,0.00132018,125.99,125.95,3.4001759]
[1766393772731,1.48766192,126.04,125.97,3.35]
[1766393772926,1.48766192,126.04,125.98,3.35]
[1766393773522,1.48766192,126.04,125.98,10.4972]
[1766393773722,0.05345484,126.02,126.0,0.05721107]
[1766393774030,0.00345484,126.02,126.0,0.05721107]
[1766393776426,0.00345484,126.02,126.0,3.40721107]
[1766393776633,1.48766192,126.06,126.0,3.40721107]
[1766393777132,1.48766192,126.06,126.02,3.35]
[1766393777522,0.05104039,126.05,126.03,0.05237981]
[1766393778327,1.48766192,126.09,126.03,3.40237981]
[1766393778533,1.48766192,126.09,126.03,3.35]
[1766393779425,1.48766192,126.09,126.05,0.05397509]
[1766393780430,111.0642,126.12,126.03,3.35]
[1766393780431,1.48766192,126.07,126.03,3.35]
[1766393780927,1.48766192,126.05,126.0,3.35]
[1766393781525,0.05884474,126.04,126.01,0.0516265]
[1766393783041,1.54650666,126.04,125.97,7.1478]
[1766393783238,1.54650666,126.04,125.97,10.4978]
[1766393783430,1.48766192,126.0,125.93,3.35]
[1766393783631,1.48766192,126.0,125.93,10.5]
[1766393784231,0.05181714,125.98,125.95,0.05588302]
[1766393785243,0.05181714,125.98,125.95,3.40588302]
[1766393785244,0.00181714,125.98,125.95,3.40588302]
[1766393785635,1.48766192,126.02,125.96,3.35]
[1766393785940,46.86,126.03,125.96,3.35]
[1766393786741,0.05797431,126.01,125.98,0.06048283]
[1766393788740,0.05797431,126.01,125.93,3.35]
[1766393788934,7.1467,126.0,125.93,3.35]
[1766393789438,50.87425607,126.02,125.93,3.35]
[1766393789633,0.05695981,125.99,125.96,0.0547204]
[1766393791439,58.01985607,126.02,125.96,0.0547204]
[1766393791440,58.01985607,126.02,125.96,3.4047204]
[1766393792342,0.06082593,126.0,125.96,3.4047204]
[1766393792834,0.00082593,126.0,125.96,3.4047204]
[1766393793233,0.00082593,126.0,125.97,3.35]
[1766393795137,0.00082593,126.0,125.96,0.0547204]
[1766393797141,0.00082593,126.0,125.96,3.4847204]
[1766393798243,0.00082593,126.0,125.96,10.6331204]
[1766393798439,0.00082593,126.0,125.97,3.43]
[1766393800041,0.00082593,126.0,125.96,0.0547204]
[1766393801039,7.14732593,126.0,125.96,0.0547204]
[1766393801234,0.00082593,126.0,125.96,0.0547204]
[1766393802650,7.1471,125.99,125.96,0.0547204]
[1766393802848,7.1471,125.99,125.96,0.0047204]
[1766393804850,7.1478,125.98,125.96,0.0047204]
[1766393806351,0.00082593,126.0,125.96,0.0047204]
[1766393807553,7.1471,125.99,125.96,0.0047204]
[1766393807755,0.00082593,126.0,125.96,0.0047204]
[1766393808661,7.1477,125.98,125.96,0.0047204]
[1766393809859,7.14772593,126.0,125.96,0.0047204]
[1766393810650,0.00082593,126.0,125.96,0.0047204]
[1766393812561,7.14772593,126.0,125.96,0.0047204]
[1766393812963,0.00082593,126.0,125.96,0.0047204]
[1766393813478,0.00082593,126.0,125.93,3.43]
[1766393814164,7.1476,125.98,125.93,3.43]
[1766393814565,0.05062315,125.97,125.94,0.05479003]
[1766393816552,0.05062315,125.97,125.94,0.00479003]
[1766393816757,0.05062315,125.97,125.9,3.43]
[1766393816957,46.95062315,125.97,125.9,3.43]
[1766393817757,46.95062315,125.97,125.92,0.04983505]
[1766393817956,7.1487,125.96,125.89,2.83647282]
[1766393818360,7.1493,125.95,125.89,2.83647282]
[1766393818563,7.1493,125.95,125.88,3.43]
[1766393819060,0.06084273,125.93,125.9,0.05603134]
[1766393820771,0.06084273,125.93,125.83,111.3086]
[1766393820772,46.96084273,125.93,125.86,3.43]
[1766393820972,46.9,125.93,125.86,3.43]
[1766393821773,0.05639465,125.91,125.88,0.05290379]
[1766393825781,0.05639465,125.91,125.88,3.44290379]
[1766393825991,7.1491,125.96,125.88,3.44290379]
[1766393825992,54.0491,125.96,125.88,3.44290379]
[1766393826166,54.0491,125.96,125.88,3.39]
[1766393826883,0.0548418,125.93,125.91,0.05806138]
[1766393831369,0.0548418,125.93,125.88,3.39]
[1766393831574,0.0548418,125.93,125.86,3.39]
[1766393831774,2.33280757,125.94,125.86,3.39]
[1766393832268,9.48300757,125.94,125.86,3.39]
[1766393832465,0.05674448,125.91,125.89,0.05169006]
[1766393833178,56.38170757,125.96,125.89,0.05169006]
[1766393833478,49.23280757,125.96,125.89,0.05169006]
[1766393834180,0.06005958,125.94,125.89,0.05169006]
[1766393834681,7.21005958,125.94,125.89,0.05169006]
[1766393836977,7.21005958,125.94,125.89,3.44169006]
[1766393841589,5.958e-05,125.94,125.89,3.44169006]
[1766393842086,5.958e-05,125.94,125.89,10.59399006]
[1766393842287,5.958e-05,125.94,125.9,3.39]
[1766393843578,5.958e-05,125.94,125.9,10.5419]
[1766393844582,5.958e-05,125.94,125.9,3.39]
[1766393844789,5.958e-05,125.94,125.89,0.05169006]
[1766393844790,2.33286715,125.94,125.89,0.05169006]
[1766393845282,5.958e-05,125.94,125.89,3.44169006]
[1766393845479,111.2556,125.9,125.81,3.38254328]
[1766393845679,2.33280757,125.88,125.81,3.38254328]
[1766393846489,0.05456344,125.86,125.83,0.0542827]
[1766393848187,0.05456344,125.86,125.8,7.1576]
[1766393848188,0.05456344,125.86,125.77,182.1113]
[1766393848189,28.51561514,125.84,125.58,3.42]
[1766393848393,23.85,125.7,125.6,3.42]
[1766393848591,111.3972,125.74,125.64,3.42]
[1766393848592,23.82,125.74,125.64,3.42]
[1766393848787,111.3831,125.76,125.66,3.42]
[1766393848994,158.3031,125.76,125.66,3.42]
[1766393849294,0.05488755,125.72,125.7,0.0587632]
[1766393849988,113.69310757,125.79,125.7,0.0587632]
[1766393849989,46.92,125.76,125.7,0.0587632]
[1766393850189,46.92,125.76,125.67,3.42]
[1766393850797,0.05451074,125.73,125.7,0.06108172]
[1766393851888,7.1584,125.79,125.7,0.06108172]
[1766393852091,46.92,125.79,125.69,3.42]
[1766393852391,111.3416,125.81,125.69,3.42]
[1766393852591,54.0973,125.81,125.7,3.42]
[1766393853088,0.05050189,125.77,125.74,0.05166164]
[1766393856692,46.94,125.84,125.74,0.05166164]
[1766393856894,46.94,125.84,125.74,10.4411]
[1766393857097,118.4433,125.87,125.76,3.28]
[1766393857286,165.3833,125.87,125.76,3.28]
[1766393857485,0.05780131,125.83,125.8,0.05517166]
[1766393857798,0.05780131,125.83,125.76,3.28]
[1766393858900,0.05780131,125.83,125.73,115.40770278]
[1766393858901,0.05780131,125.83,125.78,0.05866207]
[1766393859100,0.05789085,125.82,125.78,0.05866207]
[1766393859394,111.2658,125.89,125.78,3.33866207]